[Event "1st Festival Galdar 2024"]
[Site "Galdar"]
[Date "2024.09.05"]
[Round "5.16"]
[White "Hernandez Leon, Sergio"]
[Black "Ladron De Guevara Pinto, Paolo"]
[Result "0-1"]
[Annotator "RC"]
[ECO "A06"]
[WhiteElo "2136"]
[BlackElo "2371"]
[PlyCount "73"]
[EventDate "2024.09.02"]
[EventType "swiss"]
[EventCountry "ESP"]
[SourceTitle "playchess.com"]
[Source "ChessBase"]
[SourceQuality "1"]
[TimeControl "5400+30"]

1. Nf3 {[%emt 0:00:03]} d5 {[%emt 0:00:40]} 2. b3 {[%emt 0:00:08]} Bf5 {[%emt 0:01:00]} 3. Bb2 {[%emt 0:00:39]} e6 {[%emt 0:00:18]} 4. e3 {[%emt 0:03:36]} Nf6 {[%emt 0:01:16]} 5. Be2 {[%emt 0:02:00]} h6 {[%emt 0:00:16]} 6. O-O {[%emt 0:00:07]} Be7 {[%emt 0:00:06]} 7. c4 {[%emt 0:00:28]} O-O {[%emt 0:00:43]} 8. Nc3 {[%emt 0:00:46]} c6 {[%emt 0:00:35]} 9. Ne5 {[%emt 0:06:53]} a5 {[%emt 0:02:17]} 10. d4 {[%emt 0:03:33]} Nbd7 {[%emt 0:08:36]} 11. f4 {[%emt 0:05:11]} Ne4 {[%emt 0:00:39]} 12. Nxd7 {[%emt 1:13:06]} Nxc3 {[%emt 0:11:31]} 13. Bxc3 {[%emt 0:00:00]} Qxd7 {[%emt 0:00:06]} 14. c5 {[%emt 0:00:00]} b6 {[%emt 0:04:38]} 15. cxb6 {[%emt 0:00:00]} Qb7 {[%emt 0:01:59]} 16. Bd3 {[%emt 0:00:00]} Bxd3 {[%emt 0:04:14]} 17. Qxd3 {[%emt 0:00:00]} f5 {[%emt 0:02:10]} 18. g4 {[%emt 0:00:00]} Qxb6 {[%emt 0:01:33]} 19. Kh1 {[%emt 0:00:00]} a4 {[%emt 0:03:27]} 20. gxf5 {[%emt 0:00:00]} exf5 {[%emt 0:00:56]} 21. b4 {[%emt 0:00:32]} a3 {[%emt 0:01:38]} 22. Rab1 {[%emt 0:00:37]} Qb5 {[%emt 0:01:12]} 23. Rfd1 {[%emt 0:03:38]} g6 {[%emt 0:03:04]} 24. Be1 {[%emt 0:00:07]} Rfe8 {[%emt 0:04:17]} 25. Rb3 {[%emt 0:00:12]} Reb8 {[%emt 0:05:34]} 26. Kg2 {[%emt 0:00:37]} Kf7 {[%emt 0:00:39]} 27. Qxb5 {[%emt 0:01:11]} cxb5 {[%emt 0:02:01]} 28. Rdd3 {[%emt 0:00:14]} Rc8 {[%emt 0:00:15]} 29. Rdc3 {[%emt 0:00:42]} Rc4 {[%emt 0:00:28]} 30. Rxa3 {[%emt 0:00:19]} Rxc3 {[%emt 0:01:25]} 31. Rxa8 {[%emt 0:00:11]} Rxe3 {[%emt 0:00:12]} 32. Bf2 {[%emt 0:00:08]} Re2 {[%emt 0:00:56]} 33. a4 {[%emt 0:00:35]} Bh4 {[%emt 0:03:05]} 34. axb5 {[%emt 0:01:18]} Rxf2+ {[%emt 0:00:25]} 35. Kh3 {[%emt 0:00:13]} Be7 {[%emt 0:00:17]} 36. b6 {[%emt 0:00:27]} Bd6 {[%emt 0:00:04]} 37. Kg3 {[%emt 0:00:24]} 0-1

[Event "1st Festival Galdar 2024"]
[Site "Galdar"]
[Date "2024.09.05"]
[Round "5.17"]
[White "Fernandez Garcia, Jose Miguel"]
[Black "Rivero Tacoronte, Gabriel"]
[Result "1-0"]
[Annotator "TA"]
[ECO "B12"]
[WhiteElo "2368"]
[BlackElo "1912"]
[PlyCount "73"]
[EventDate "2024.09.02"]
[EventType "swiss"]
[EventCountry "ESP"]
[SourceTitle "playchess.com"]
[Source "ChessBase"]
[SourceQuality "1"]
[TimeControl "5400+30"]

{[%evp 11,73,2,29,0,10,16,21,20,16,16,18,15,30,28,61,35,38,40,95,59,67,68,113,108,125,22,121,112,134,43,41,41,41,44,44,0,0,0,6,-18,-27,0,16,24,104,60,135,175,516,515,822,801,747,723,702,806,5497,6270,29988,29989,29991,29992,29995,29993]} 1. e4 {[%emt 0:01:21]} c6 {[%emt 0:00:08]} 2. d4 {[%emt 0:00:27]} d5 {[%emt 0:00:04]} 3. e5 {[%emt 0:00:13]} Bf5 {[%emt 0:00:05]} 4. h4 {[%emt 0:00:07]} h5 {[%emt 0:00:05]} 5. Bd3 {[%emt 0:00:52]} Bxd3 {[%emt 0:00:04]} 6. Qxd3 {[%emt 0:00:08]} e6 {[%emt 0:02:31]} 7. Bg5 {[%emt 0:01:26]} Be7 {[%emt 0:00:14]} 8. Nf3 {[%emt 0:00:08]} Nh6 {[%emt 0:00:04]} 9. Nc3 {[%emt 0:04:57] The position is equal.} Nf5 {[%emt 0:04:45]} 10. Ne2 {[%emt 0:06:00]} Qa5+ {[%emt 0:39:15]} 11. c3 {[%emt 0:01:35]} Qa6 {[%emt 0:00:09]} 12. Qd2 {[%emt 0:01:46]} f6 {[%emt 0:06:31]} 13. Be3 {[%emt 0:11:09]} Nd7 $1 {[%emt 0:04:48]} 14. Nf4 {[%emt 0:03:42]} Nf8 {[%emt 0:02:05]} (14... O-O-O $14) 15. Qc2 {[%emt 0:11:58]} O-O-O {[%emt 0:05:35]} 16. Bd2 {[%emt 0:02:29][%cal Of4e6]} c5 {[%emt 0:02:43]} 17. b4 {[%emt 0:06:08]} c4 {[%emt 0:00:16] [#]} 18. b5 {[%emt 0:03:49]} Qb6 {[%emt 0:00:33]} (18... Qxb5 $11 {keeps the balance.} 19. Nxe6 Nxe6 20. Qxf5 Qd7) 19. a4 $16 {[%emt 0:01:04][%cal Ba2a4,Ba4a5,Ba5a6][%mdl 32]} Nh6 {[%emt 0:04:47]} 20. Ng6 {[%emt 0:04:21]} (20. O-O $16) 20... Nxg6 $14 {[%emt 0:00:40]} 21. Qxg6 {[%emt 0:00:03]} Nf5 {[%emt 0:02:48]} 22. O-O {[%emt 0:09:26]} Rdf8 {[%emt 0:06:39]} 23. Rfe1 {[%emt 0:04:35]} fxe5 {[%emt 0:05:20] [#] ...Rf6 would now be deadly.} 24. a5 $1 {[%emt 0:00:14]} (24. Nxe5 Bxh4 25. a5 Qd6 $15) 24... Qd6 {[%emt 0:00:59]} 25. dxe5 {[%emt 0:02:57]} (25. Nxe5 Bxh4 26. g3 (26. Nf7 $2 Rxf7 27. Qxf7 Bxf2+ 28. Kxf2 Rf8 $19) 26... Rf6 27. gxh4 Rxg6+ 28. Nxg6 Rg8) 25... Qd7 {[%emt 0:00:04]} 26. Be3 {[%emt 0:08:13]} Nxe3 {[%emt 0:03:00]} 27. fxe3 {[%emt 0:00:56]} Bd8 {[%emt 0:03:06]} (27... Bc5 $11) 28. a6 {[%emt 0:06:35]} b6 {[%emt 0:00:40]} ({Better is} 28... Qf7 $14 29. Qg3 bxa6) 29. Rf1 $16 {[%emt 0:00:00] Hoping for Nd4. White is more active.} Rf5 $2 {[%emt 0:01:47]} (29... Rh6 30. Qg3 g5) 30. Nd4 $18 {[%emt 0:08:51][%csl LRe6,LRf5]} Rh6 {[%emt 0:00:06]} (30... Rff8 $142 31. e4 (31. Qxe6 Qxe6 32. Nxe6 Re8 $18) (31. Nxe6 Rxf1+ 32. Rxf1 Rh6 $17) (31. Rxf8 Rxf8 32. Nxe6 Re8 $18) 31... Qe8 32. Qxe6+ (32. Qxg7 Qe7 $18) 32... Qxe6 33. Nxe6 Re8 34. exd5 (34. Nxg7 Rxe5 35. exd5 Be7 $18) 34... g5 35. hxg5 (35. Nxg5 Bxg5 36. hxg5 Rxe5 $18) 35... h4) 31. Qg3 {[%emt 0:00:00]} g6 {[%emt 0:01:46]} 32. e4 {[%emt 0:00:00]} Rxf1+ {[%emt 0:01:30]} 33. Rxf1 {[%emt 0:00:00] Strongly threatening Rf8.} dxe4 {[%emt 0:01:01][%cal Bd5e4,Be4e3][%mdl 32]} 34. Rf8 {[%emt 0:00:00] White wants to mate with Qf4.} Rh7 {[%emt 0:00:14]} 35. Qxg6 {[%emt 0:00:00] White mates.} e3 {[%emt 0:02:02]} 36. Qe4 {[%emt 0:00:00]} Qc7 {[%emt 0:01:34]} 37. Nxe6 {[%emt 0:00:00] Weighted Error Value: White=0.17 (very precise) /Black=0.57.  Mistake:       	White=2     	Black=6      Inaccurate:     	White=4     	Black=2      OK:         	White=10    	Black=6      Best:        	White=2     	Black=2      Strong:       	White=1     	Black=1} 1-0

[Event "1st Festival Galdar 2024"]
[Site "Galdar"]
[Date "2024.09.05"]
[Round "5.18"]
[White "Bibilashvili, Lali"]
[Black "Camacho Collados, Marcos"]
[Result "0-1"]
[Annotator "TA"]
[ECO "A08"]
[WhiteElo "1865"]
[BlackElo "2460"]
[PlyCount "76"]
[EventDate "2024.09.02"]
[EventType "swiss"]
[EventCountry "ESP"]
[SourceTitle "playchess.com"]
[Source "ChessBase"]
[SourceQuality "1"]
[TimeControl "5400+30"]

{[%evp 16,76,0,0,28,27,33,26,29,14,20,0,-21,-15,-14,0,-8,-21,-4,0,0,0,33,-20,0,0,0,-39,-37,-92,-89,-78,-87,-82,-68,-75,-78,-64,-79,-75,-41,-197,-215,-219,-194,-166,-196,-199,-187,-196,-186,-183,-89,-176,-179,-170,-178,-208,-144,-29988,-29989,-29992,-29993]} 1. Nf3 {[%emt 0:00:07]} Nf6 {[%emt 0:00:33]} 2. g3 {[%emt 0:00:05]} g6 {[%emt 0:00:22]} 3. Bg2 {[%emt 0:00:04]} Bg7 {[%emt 0:00:07]} 4. O-O {[%emt 0:00:06]} O-O {[%emt 0:00:09]} 5. d3 {[%emt 0:00:11]} d5 {[%emt 0:04:21]} 6. Nbd2 {[%emt 0:01:20]} c5 {[%emt 0:01:13]} 7. e4 {[%emt 0:00:22]} dxe4 {[%emt 0:01:08]} 8. dxe4 {[%emt 0:00:04]} Nc6 {[%emt 0:01:32]} 9. c3 {[%emt 0:02:11]} Nd7 {[%emt 0:11:32]} 10. Qe2 {[%emt 0:02:55]} Qc7 {[%emt 0:05:51]} 11. Ne1 {[%emt 0:06:30][%cal Bf3e1,Be1c2,Bc2a3][%mdl 32]} b6 {[%emt 0:05:23] White has an edge.} 12. f4 {[%emt 0:01:26]} a5 {[%emt 0:01:36]} 13. a4 {[%emt 0:01:21]} Ba6 {[%emt 0:00:29]} 14. Nc4 {[%emt 0:00:06]} b5 {[%emt 0:03:34]} 15. axb5 {[%emt 0:00:28]} Bxb5 {[%emt 0:00:03] ...Nb6 would now be deadly.} 16. Nc2 $1 {[%emt 0:03:12]} Nb6 $36 {[%emt 0:01:00][%mdl 2048] Black has the initiative.} 17. N2a3 {[%emt 0:00:04]} Ba6 {[%emt 0:00:09]} 18. e5 {[%emt 0:01:02]} Rad8 {[%emt 0:23:27]} (18... a4 $5 19. Qf3 Na5 (19... Bxc4 20. Nxc4 Rfc8 21. Qe4 $16) 20. Nxb6 Qxb6 $15) 19. Qe4 {[%emt 0:03:38]} ({White should try} 19. Re1 $14) 19... Nxc4 $11 {[%emt 0:00:39]} 20. Nxc4 {[%emt 0:00:08][%cal Of1e1]} Nd4 $1 {[%emt 0:00:53]} 21. cxd4 {[%emt 0:13:07]} Bxc4 {[%emt 0:00:57]} 22. Rd1 {[%emt 0:03:53]} (22. Re1 $15) 22... Bb3 {[%emt 0:01:49]} 23. Rd2 {[%emt 0:00:58]} cxd4 {[%emt 0:00:33]} 24. Rxd4 {[%emt 0:07:07]} f6 {[%emt 0:13:26][%cal Rf6e5]} 25. Be3 {[%emt 0:18:40]} fxe5 {[%emt 0:00:46]} 26. Rxd8 {[%emt 0:05:24]} Rxd8 {[%emt 0:00:11]} 27. Rc1 {[%emt 0:01:01]} Qb8 {[%emt 0:00:10] And now ...exf4 would win.} (27... Qd6 {simplifies} 28. f5 Bd5 29. Qxd5+ Qxd5 30. Bxd5+ Rxd5 31. fxg6 hxg6 32. Rc4 Rd1+) 28. Rc5 $2 {[%emt 0:19:01]} (28. f5 $15) 28... exf4 $19 {[%emt 0:01:34]} 29. gxf4 {[%emt 0:00:21]} Qd6 {[%emt 0:09:53] ...a4 is the strong threat.} (29... Bxb2 30. Rxa5 Bc3 31. Ra8 Qxa8 32. Qxa8 Rxa8 33. Bxa8 $19) 30. Rxa5 {[%emt 0:04:52]} Qd1+ {[%emt 0:02:26]} (30... Bxb2 31. Rb5 Qd1+ 32. Kf2 $15) 31. Bf1 {[%emt 0:04:28]} Bd5 {[%emt 0:00:40] Prevents Ra8.} (31... Bxb2 32. Ra8 Rxa8 33. Qxa8+ Kg7 34. Qe4 $11) 32. Rxd5 {[%emt 0:01:16]} Rxd5 {[%emt 0:00:07]} (32... Qxd5 $2 {perishes.} 33. Bc4 $18 (33. Qxe7 $2 Bd4 $19) (33. Qxe7 $2 Bd4 $19)) 33. Qxe7 {[%emt 0:00:25] [#]} Rd8 {[%emt 0:01:31] Prevents Qe8+} ({And not} 33... Bxb2 34. Qe8+ Kg7 35. Qe7+ Kg8 36. Qe8+ Kg7 37. Qe7+ Kg8 $11) (33... Bd4 $1 $19 {has better winning chances. Hoping for ...Qd2.} 34. Kf2 Bxe3+ (34... Bxb2 35. Qe8+ Kg7 36. Qe7+ Kg8 37. Be2 $11) 35. Qxe3 Kf8) 34. Qe6+ {[%emt 0:00:19]} (34. b4 $17) 34... Kh8 {[%emt 0:00:10]} 35. b4 {[%emt 0:00:21] [#]} Qe1 $1 {[%emt 0:03:13]} 36. b5 {[%emt 0:01:01]} h6 {[%emt 0:00:21] aiming for ...Rd1.} 37. Qb6 $2 {[%emt 0:00:44][%mdl 8192]} (37. Qh3 $17) 37... Rd1 {[%emt 0:00:18][%csl Gd1][%cal Re1f1]} 38. Qb8+ {[%emt 0:00:27]} Kh7 {[%emt 0:00:06] Weighted Error Value: White=0.40/Black=0.17 (very precise) .  Loses game:     	White=1     	---        Mistake:       	White=4     	Black=1      Inaccurate:     	White=2     	Black=3      OK:         	White=11    	Black=12     Best:        	White=2     	Black=3      Strong:       	White=1     	Black=1} 0-1

[Event "1st Festival Galdar 2024"]
[Site "Galdar"]
[Date "2024.09.05"]
[Round "5.19"]
[White "Lagarejos Gonzalez, Eduardo"]
[Black "Perez Garcia, Rodney Oscar"]
[Result "0-1"]
[Annotator "TA"]
[ECO "B12"]
[WhiteElo "1971"]
[BlackElo "2313"]
[PlyCount "36"]
[EventDate "2024.09.02"]
[EventType "swiss"]
[EventCountry "ESP"]
[SourceTitle "playchess.com"]
[Source "ChessBase"]
[SourceQuality "1"]
[TimeControl "5400+30"]

{[%evp 9,36,0,68,62,87,79,75,4,0,0,3,0,0,0,0,-19,-9,-12,-15,-56,-43,-93,-114,-97,-104,-131,-115,-170,-179]} 1. e4 {[%emt 0:00:09]} c6 {[%emt 0:00:51]} 2. d4 {[%emt 0:00:45]} d5 {[%emt 0:00:14]} 3. e5 {[%emt 0:02:15]} c5 {[%emt 0:00:13]} 4. dxc5 {[%emt 0:00:14]} Nc6 {[%emt 0:00:45]} 5. Bb5 {[%emt 0:01:48]} Qa5+ {[%emt 0:02:21]} ({Black should play} 5... e6 $11) 6. Nc3 $14 {[%emt 0:00:27]} e6 {[%emt 0:00:07][%cal Oc8d7]} 7. Be3 {[%emt 0:01:23]} Bd7 {[%emt 0:10:06]} 8. Bxc6 {[%emt 0:04:20]} ({Better is} 8. Nf3 $16) 8... Bxc6 $11 {[%emt 0:00:13]} 9. Nf3 {[%emt 0:01:45]} Bxc5 {[%emt 0:06:48]} 10. Bxc5 {[%emt 0:00:42]} Qxc5 {[%emt 0:00:04]} 11. Qd4 {[%emt 0:01:34]} b6 {[%emt 0:02:10]} 12. b4 {[%emt 0:21:14]} Qe7 {[%emt 0:05:40]} 13. b5 {[%emt 0:03:30]} Bd7 {[%emt 0:01:15]} 14. Rb1 {[%emt 0:01:16]} Rc8 {[%emt 0:01:36]} 15. Rb3 {[%emt 0:01:50]} (15. Ne2 $15) 15... Rc4 $17 {[%emt 0:12:11]} 16. Qd3 {[%emt 0:01:19]} Qc5 {[%emt 0:08:17]} 17. O-O {[%emt 0:05:14]} Ne7 {[%emt 0:00:28]} 18. Ne2 {[%emt 0:11:26]} (18. Rd1 $17) 18... Bxb5 {[%emt 0:03:56] White got outplayed after the opening.   Weighted Error Value: White=0.25 (precise) /Black=0.11 (very precise) .  Mistake:       	White=3     	---        Inaccurate:     	White=1     	---        OK:         	---       	Black=8      Best:        	White=1     	Black=1} ({Stronger than} 18... Rxc2 19. Nc3 Rxc3 20. Qxc3 $16) 0-1

[Event "1st Festival Galdar 2024"]
[Site "Galdar"]
[Date "2024.09.05"]
[Round "5.20"]
[White "Gil Alba, Hector Luis"]
[Black "Sosa Suarez, Carla Cristina"]
[Result "1-0"]
[Annotator "TA"]
[ECO "C41"]
[WhiteElo "2292"]
[BlackElo "2016"]
[PlyCount "87"]
[EventDate "2024.09.02"]
[EventType "swiss"]
[EventCountry "ESP"]
[SourceTitle "playchess.com"]
[Source "ChessBase"]
[SourceQuality "1"]
[TimeControl "5400+30"]

{[%evp 10,87,30,8,37,35,48,35,39,34,42,41,29,41,24,34,37,43,29,38,25,17,39,0,47,54,47,68,57,59,52,58,50,0,0,0,0,0,0,0,0,-45,0,0,0,0,0,0,0,0,0,0,0,0,14,26,49,10,22,17,38,14,16,0,65,77,105,0,0,0,263,241,1533,980,29978,29979,29979,29980,29980,29981]} 1. d4 {[%emt 0:00:04]} d6 {[%emt 0:00:03]} 2. e4 {[%emt 0:00:32]} Nf6 {[%emt 0:00:04]} 3. Nc3 {[%emt 0:00:34]} e5 {[%emt 0:00:07]} 4. Nf3 {[%emt 0:00:25]} exd4 {[%emt 0:00:06]} 5. Qxd4 {[%emt 0:00:17]} Be7 {[%emt 0:00:49]} 6. Bg5 {[%emt 0:01:36]} Be6 {[%emt 0:04:35]} 7. O-O-O {[%emt 0:01:27]} Nc6 {[%emt 0:01:52]} 8. Bb5 {[%emt 0:02:19]} O-O $1 {[%emt 0:01:09] White is slightly better.} 9. Bxc6 {[%emt 0:00:58]} bxc6 {[%emt 0:00:01]} 10. e5 {[%emt 0:00:27]} Nd5 {[%emt 0:08:41]} 11. Bxe7 {[%emt 0:00:40]} Qxe7 {[%emt 0:00:27]} 12. Rhe1 {[%emt 0:02:36]} Nxc3 {[%emt 0:06:33]} 13. Qxc3 {[%emt 0:00:37]} c5 {[%emt 0:01:52]} 14. exd6 {[%emt 0:01:21]} cxd6 {[%emt 0:00:20]} 15. h4 {[%emt 0:07:43]} Rad8 {[%emt 0:06:18]} 16. Kb1 {[%emt 0:08:39]} Rfe8 {[%emt 0:04:18]} (16... h6 $11) 17. Ng5 $14 {[%emt 0:01:29]} h6 {[%emt 0:02:08]} 18. Nxe6 {[%emt 0:01:48]} fxe6 {[%emt 0:00:05]} 19. g3 {[%emt 0:00:13]} Qf6 {[%emt 0:05:06]} 20. Qxf6 {[%emt 0:00:32]} gxf6 {[%emt 0:00:01][%mdl 4096] Endgame. KRR-KRR} 21. c4 {[%emt 0:00:16]} ({White should try} 21. Re3 $14) 21... Kf7 $11 {[%emt 0:03:36]} 22. Rd3 {[%emt 0:02:43]} Rd7 {[%emt 0:02:29]} 23. Kc2 {[%emt 0:02:22]} f5 {[%emt 0:01:40]} 24. Ra3 {[%emt 0:01:17]} Rg8 {[%emt 0:02:25]} 25. Rae3 {[%emt 0:02:01]} Re7 {[%emt 0:01:14]} 26. Rd1 {[%emt 0:00:21]} Rd7 {[%emt 0:00:15]} 27. a3 {[%emt 0:00:44]} Rg4 {[%emt 0:05:14]} 28. f4 {[%emt 0:03:14]} Rg8 {[%emt 0:01:58]} 29. b4 {[%emt 0:01:04]} cxb4 {[%emt 0:01:16]} 30. axb4 {[%emt 0:00:10]} Rc8 {[%emt 0:04:26]} 31. Kb3 {[%emt 0:02:12]} Rcc7 {[%emt 0:04:59]} 32. Rde1 {[%emt 0:02:13]} Re7 {[%emt 0:01:33]} 33. h5 {[%emt 0:03:31]} Kf6 {[%emt 0:02:38]} 34. Rd1 {[%emt 0:02:06]} Red7 {[%emt 0:00:31]} 35. Ra1 {[%emt 0:01:06]} Rc6 $1 {[%emt 0:01:38] Dodges Ra6} 36. b5 {[%emt 0:00:41]} Rc5 {[%emt 0:03:37]} (36... Rb7 $1 $11) 37. Ra6 $14 {[%emt 0:00:30]} Ke7 {[%emt 0:00:11] [#]} 38. Re1 {[%emt 0:01:48] White is more active.} (38. Rd3 $1 $16) 38... Rdc7 $11 {[%emt 0:01:24]} 39. Ra4 {[%emt 0:01:42]} Kf7 $2 {[%emt 0:04:27][%mdl 8192]} (39... Kd7 $11 {and Black stays safe.}) 40. Rea1 $18 {[%emt 0:00:49]} d5 $2 {[%emt 0:01:22]} (40... a6) 41. Rxa7 {[%emt 0:02:12] Threatening mate with b6.} Rxc4 {[%emt 0:01:23]} 42. b6 {[%emt 0:01:58] White mates.} Rc3+ {[%emt 0:01:22]} 43. Kb4 {[%emt 0:00:42]} R3c4+ {[%emt 0:00:30]} 44. Kb5 {[%emt 0:00:12] Weighted Error Value: White=0.10 (very precise) /Black=0.38.  Loses game:     	---       	Black=1      Mistake:       	White=2     	Black=3      Inaccurate:     	White=3     	Black=3      OK:         	White=11    	Black=14     Best:        	White=5     	---        Strong:       	---       	Black=2} 1-0